Workbook

Sheet Motorisation
B1: Nom du modèle | D1: La plupart des formules de cet onglet sont tirées du fichier de Franck A. (CalculMotorisationSimplifiée.xsl), formules et calculs vérifiés tous ok le 14/07/2015
B3: moteur | E3: accu | I3: Vérifications | N3: Boucher | O3: =O4/(12^5*1000^3) -> 4.01877572e-15
B4: Type de moteur | C4: 3.5 | E4: Type d'accu | F4: 3.7 | I4: KV du moteur chosi | K4: 1100 | N4: K = | O4: =C21 -> 1
B5: Rendement | C5: 75 | E5: Nombre d'éléments | F5: 3 | I5: Masse du moteur choisi (g) | K5: 73
B6: Puissance massique (W/kg) | C6: 200 | E6: Etat de l'accu | F6: 1/3 du vol | I6: Intensité max du moteur choisi (A) | K6: 22
B7: Puissance moteur min (W) | C7: =ROUND((Puissance_Massique_Moteur*(O7/1000)),0) -> 116 | E7: Tension moy calculée (V) | F7: =F4*F5 -> 11.1 | I7: Puissance max du moteur choisi (W) | K7: 315 | N7: Masse du modèle (g) | O7: 580
B8: Puissance moteur sécu (W) | C8: =ROUND(((((Puissance_Massique_Moteur*(O7/1000))*1.02)*100)/Rendement_Moteur),0) -> 158 | E8: Ajustement de la tension (V) | F8: 11.1 | I8: Capacité de l'accu choisi (mAh) | K8: 1800 | N8: Surface alaire (dm²) | O8: 15.2
B9: Masse moteur min (g) | C9: =ROUND(C8/C4,0) -> 45 | E9: Taux de décharge max (C) | F9: 25 | I9: Intensité de décharge constante théorique (A) | K9: =Capacite_Accu_Choisie*Taux_Decharge_Accu/1000 -> 45 | L9: A | N9: Masse totale du modèle (g) | O9: =Masse_modele+Masse_Reelle_Accu -> 740
B10: Intensité min moteur (A) | C10: =ROUND((F10*1.02),1) -> 14.5 | E10: Intensité moyenne (A) | F10: =ROUND(C8/Tension_Moyenne,1) -> 14.2 | I10: Intensité de décharge constante conseillée (A) | K10: =I_Const_Theorique*(2/3) -> 30 | L10: A | N10: Charge Alaire (g/dm²) | O10: =O9/O8 -> 48.68421053
B11: Intensité sécur moteur (A) | C11: =ROUND(F11*1.02,1) -> 21.7 | E11: Intensité max (A) | F11: =ROUND(F10*(3/2),1) -> 21.3 | I11: Masse calculée de l'accu nu (g) | K11: 158.8235294 | L11: g | N11: Cz aile choisi | O11: 0.3
B12: Puissance moteur restituée | C12: =ROUND(F10*Tension_Moyenne*0.98*(Rendement_Moteur/100),0) -> 116 | E12: Capacité min (mAh) | F12: =ROUNDUP((F11/F9)*1000,0) -> 852 | I12: Masse réelle de l'accu choisi (g) | K12: 160
B13: Kv | C13: 1100 | E13: Masse accu mini nu (g) | F13: 75.17647059 | J13: Hélice inférieure | K13: hélice choisie | L13: hélice supérieure
B14: Régime théorique à vide | C14: =Tension_Moyenne*C13 -> 12210 | O14: km/h | P14: m/s
B15: Régime standard en charge | C15: =C14*0.83 -> 10134.3 | E15: ESC | I15: Diamètre (pouces) | J15: =ROUNDDOWN(F19,0) -> 8 | K15: 9 | L15: =ROUNDUP(F19,0) -> 9 | N15: Vitesse moy palier | O15: =(SQRT((2*9.81)/1.293)*SQRT((Charge_Alaire/10)/Cz_AileChoisi))*3.6 -> 56.49189957 | P15: =O15/3.6 -> 15.69219433
C16: =(((C15*F20*2.54)/100)/1000)*60 -> 70.61487447 | E16: Intensité constante minimum | F16: =C10*1.2 -> 17.4 | I16: Pas (pouces) | J16: =ROUNDDOWN(F20,0) -> 4 | K16: 5 | L16: =ROUNDUP(F20,0) -> 5 | N16: Coefficient de portance max | O16: 0.8
C17: =C16*0.8 -> 56.49189957 | I17: Rapport Pas/Diamètre | J17: =J16/J15 -> 0.5 | K17: =K16/K15 -> 0.5555555556 | L17: =L16/L15 -> 0.5555555556 | N17: Vitesse décrochage | O17: =4.56*SQRT(Charge_Alaire/Czprofildecrochage) -> 35.57246126 | P17: =O17/3.6 -> 9.881239239
B18: Mes hélices: | C18: K | E18: Hélice théorique | I18: Régime à vide | J18: =Tension_Moyenne*K4 -> 12210 | K18: =Tension_Moyenne*Kv_Choisi -> 12210 | L18: =Tension_Moyenne*K4 -> 12210 | N18: Vitesse air brassé | O18: =Vitesse_Moyenne_Palier/0.8 -> 70.61487447 | P18: =O18/3.6 -> 19.61524291
B19: les hélices vérifiées sont en rouge | E19: Diamètre (pouces) | F19: =(C12/(O3*F20*C15^3))^(1/4) -> 8.825033662 | I19: Régime standard | J19: =J18*0.83 -> 10134.3 | K19: =K18*0.83 -> 10134.3 | L19: =L18*0.83 -> 10134.3
E20: Pas (pouces) | F20: =Vitesse_Air_Brasse/((2.54*60/100/1000)*Regime_Standard) -> 4.572118396 | I20: Puissance à l'arbre (W) | J20: =Coefficient_K*(J16/12)*((J15/12)^4)*((J19/1000)^3) -> 68.53224803 | K20: =Coefficient_K*(Pas_Helice_Libre/12)*((Diametre_Helice_Libre/12)^4)*((K19/1000)^3) -> 137.2192625 | L20: =Coefficient_K*(L16/12)*((L15/12)^4)*((K19/1000)^3) -> 137.2192625
B21: 9x5 Noire HK | C21: 1 | E21: Rapport Pas/Diamètre | F21: =F20/F19 -> 0.5180850943 | I21: Traction statique (g) | J21: =(28.35*(J16)*(J15)^3*J19^2*10^-10)*Coeff_Traction -> 596.3078522 | K21: =(28.35*(Pas_Helice_Libre)*(Diametre_Helice_Libre)^3*K19^2*10^-10)*Coeff_Traction -> 1061.299864 | L21: =(28.35*(L16)*(L15)^3*L19^2*10^-10)*Coeff_Traction -> 1061.299864
E22: Coeff de traction | F22: 1 | I22: Vitesse air brassé (km/h) | J22: =0.001524*$J$19*J16 -> 61.7786928 | K22: =0.001524*$K$19*Pas_Helice_Libre -> 77.223366 | L22: =0.001524*$L$19*L16 -> 77.223366 | N22: Gestion des Gaz (%) | O22: 20
B23: 6x4,5 rouge aliexpress | C23: 1.28 | E23: Régime à vide | F23: =Tension_Moyenne*KV -> 12210 | I23: Intensité nécessaire (A) | J23: =J20/Tension_Moyenne/0.98/Rendement_Moteur*100 -> 8.400103945 | K23: =K20/Tension_Moyenne/0.98/Rendement_Moteur*100 -> 16.81917785 | L23: =L20/Tension_Moyenne/0.98/Rendement_Moteur*100 -> 16.81917785 | N23: Tension moyenne (V) | O23: =Tension_Moyenne -> 11.1
B24: 7x4 | E24: Régime standard | F24: =F23*0.83 -> 10134.3 | I24: Puissance consommée (W) | J24: =J23*Tension_Moyenne -> 93.24115379 | K24: =K23*Tension_Moyenne -> 186.6928741 | L24: =L23*Tension_Moyenne -> 186.6928741 | N24: Intensité correspondante (A) | O24: =(O22/100)*K23 -> 3.36383557
B25: SF E 8x3.8 | C25: 1.8 | E25: Puissance à l'arbre (W) | F25: =Coefficient_K*(F20/12)*((F19/12)^4)*((F24/1000)^3) -> 116 | I25: Tension moyenne (V) | J25: =J24/J23 -> 11.1 | K25: =K24/K23 -> 11.1 | L25: =L24/L23 -> 11.1 | N25: Puissance consommée (W) | O25: =O23*O24 -> 37.33857483
B26: GWS EP DD 8x4 | E26: Traction statique (g) | F26: =(28.35*(F20)*(F19)^3*F24^2*10^-10)*Coeff_Traction -> 914.9706343 | I26: Puissance massique (W/kg) | J26: =J20/($O$7/1000) -> 118.1590483 | K26: =K20/($O$7/1000) -> 236.5849353 | L26: =L20/($O$7/1000) -> 236.5849353 | N26: Traction statique (g) | O26: =(28.35*(Pas_Helice_Libre)*(Diametre_Helice_Libre)^3*O28^2*10^-10)*Coeff_Traction -> 362.9594479
B27: APC 8x4 E | C27: 1.3 | E27: Vitesse air brassé (km/h) | F27: =0.001524*F24*F20 -> 70.61487447 | I27: Vitesse de vol (km/h) | J27: =J22*0.8 -> 49.42295424 | K27: =K22*0.8 -> 61.7786928 | L27: =L22*0.8 -> 61.7786928 | N27: Puissance à l'arbre | O27: =O24*$O$23*0.98*(Rendement_Moteur/100) -> 27.4438525
B28: SF Electric Prop 8x4.5 | E28: Intensité nécessaire (A) | F28: =F25/Tension_Moyenne/0.98/Rendement_Moteur*100 -> 14.21829993 | I28: Autonomie plein gaz (mn) | J28: =Capacite_Accu_Choisie/1000/J23*60*0.95 -> 12.21413457 | K28: =Capacite_Accu_Choisie/1000/K23*60*0.95 -> 6.100179266 | L28: =Capacite_Accu_Choisie/1000/L23*60*0.95 -> 6.100179266 | N28: Régime (T/mn) | O28: =(O27/(Diametre_Helice_Libre^4*O3*Pas_Helice_Libre))^(1/3) -> 5926.574593
B29: SF E 9x4.7 | C29: 1.24 | N29: Vitesse air brassé | O29: =0.001524*$O$28*Pas_Helice_Libre -> 45.1604984 | P29: =O29/3.6 -> 12.54458289
B30: TP Slow Fly 10x4.7 GWS | C30: 1.4 | I30: Turnigy D3530/14 1100KV Brushless Outrunner Motor | N30: Vitesse de vol (km/h)(m/s) | O30: =O29*0.8 -> 36.12839872 | P30: =O30/3.6 -> 10.03566631
B31: GWS EP DD 10x6 | C31: 0.84 | I31: Kv annoncé | J31: 1100 | K31: mesuré
B32: APC 11x5.5 E | C32: 0.94 | E32: Hélices théoriques | F32: K | I32: 22A | J32: 2S | K32: 11x7
B33: Beech wood 12x5 | C33: 0.65 | I33: 315W | J33: 3S | K33: 9x5
B34: Cherry wood 12x6 | E34: APC 9x5 | F34: 1.1 | I34: 73g | J34: 4S | K34: 7x3
B35: GWS EP RD 12x6
